bitfinex-derivatives/quotes_ETHF0:USTF0_20251012
["timestamp","ask_amount","ask_price","bid_price","bid_amount"]
[1760294173244,0.928,4116.1,4115.7,3.2078]
[1760294173442,0.43709,4115.2,4115.1,3.2078]
[1760294173752,1.36509,4115.2,4115.1,3.2078]
[1760294174244,0.43708,4115.4,4115.1,3.2078]
[1760294174444,1.36508,4115.4,4115.2,0.9728]
[1760294174647,0.43709,4115.2,4115.1,3.2078]
[1760294174948,0.43708,4115.4,4115.1,3.2078]
[1760294175249,0.928,4115.2,4115.1,3.2078]
[1760294176240,0.3909,4115.5,4115.1,4.1806]
[1760294176448,0.43708,4115.3,4115.1,4.1806]
[1760294176650,0.928,4115.2,4115.1,4.1806]
[1760294176844,0.928,4115.2,4115.1,3.2078]
[1760294177549,4.30037,4115.9,4115.1,3.2078]
[1760294177550,3.2078,4115.9,4115.2,0.9728]
[1760294177747,0.43707,4115.4,4115.2,0.9728]
[1760294177944,0.3909,4115.5,4115.1,3.2078]
[1760294178144,1.36509,4115.2,4115.1,3.2078]
[1760294179545,1.36513,4114.8,4114.7,0.00257128]
[1760294180552,1.75607,4114.5,4114.4,2.01010817]
[1760294180954,4.45829166,4114.5,4114.4,2.01010817]
[1760294181752,0.928,4113.3,4113.2,0.4373]
[1760294181943,0.928,4113.3,4113.0,0.9728]
[1760294182150,0.43728,4113.4,4113.0,0.9728]
[1760294182344,1.36531,4113.2,4112.6,1.41017]
[1760294182542,1.36531,4113.2,4112.5,3.2078]
[1760294182543,0.928,4113.4,4112.5,4.1806]
[1760294182848,0.928,4113.1,4112.6,0.00180965]
[1760294183249,0.928,4113.1,4112.6,0.43916965]
[1760294183442,0.3909,4113.0,4112.6,0.00180965]
[1760294183646,0.43734,4112.9,4112.6,0.00180965]
[1760294183954,0.82823,4113.0,4112.6,0.43917965]
[1760294184152,0.93068221,4113.2,4112.6,0.97460965]
[1760294184449,0.928,4112.9,4112.7,0.9728]
[1760294184854,0.928,4112.9,4112.6,0.43917965]
[1760294184855,0.00268221,4113.2,4112.9,0.43733]
[1760294185248,0.00268221,4113.2,4112.8,0.9728]
[1760294185249,0.928,4113.0,4112.8,0.9728]
[1760294185450,0.928,4113.0,4112.8,1.41014]
[1760294185954,0.928,4113.0,4112.9,0.9728]
[1760294186157,0.43999221,4113.2,4112.6,0.97460965]
[1760294186158,0.928,4113.1,4112.6,0.97460965]
[1760294186357,0.43734,4112.9,4112.6,0.00180965]
[1760294186553,0.928,4113.1,4112.8,0.43735]
[1760294186757,0.93068221,4113.2,4112.6,1.41196965]
[1760294186948,0.928,4113.0,4112.6,0.43916965]
[1760294187149,0.3909,4113.0,4112.6,0.00180965]
[1760294187556,0.3909,4113.0,4112.6,1.41196965]
[1760294187858,0.928,4112.9,4112.6,0.43916965]
[1760294188156,0.00268221,4113.2,4112.8,0.9728]
[1760294188360,0.93068221,4113.2,4113.0,1.41012]
[1760294188757,0.928,4113.1,4113.0,1.41012]
[1760294189054,0.00268221,4113.2,4113.0,1.41012]
[1760294189257,0.00268221,4113.2,4112.6,0.00180965]
[1760294189258,0.00268221,4113.2,4112.9,1.41013]
[1760294189448,0.928,4113.1,4112.9,1.41013]
[1760294189656,0.928,4113.1,4112.8,0.9728]
[1760294189857,0.928,4113.1,4112.8,0.43734]
[1760294190055,0.928,4113.1,4112.9,0.9728]
[1760294190256,0.43732,4113.1,4112.9,0.9728]
[1760294190658,0.928,4113.0,4112.9,0.9728]
[1760294190854,0.928,4113.0,4112.8,0.43734]
[1760294190855,0.43733,4113.0,4112.7,0.9728]
[1760294191058,0.928,4113.0,4112.8,0.43734]
[1760294191362,0.928,4113.0,4112.9,0.9728]
[1760294191853,0.928,4113.0,4112.8,0.43734]
[1760294191854,0.01,4113.1,4113.0,0.43733]
[1760294192163,0.01,4113.1,4113.0,1.76403]
[1760294193065,0.01,4113.1,4112.7,0.9576]
[1760294193361,0.9177,4113.0,4112.8,0.43734]
[1760294193654,0.43734,4112.9,4112.8,0.9576]
[1760294193860,0.01,4113.1,4112.6,0.00180965]
[1760294193861,1.35506,4112.7,4112.6,0.00180965]
[1760294194062,0.9177,4112.7,4112.6,0.00180965]
[1760294194257,0.9177,4112.7,4112.6,0.95940965]
[1760294194459,3.2078,4113.0,4112.7,0.9576]
[1760294194762,0.9177,4112.9,4112.6,0.95940965]
[1760294194953,0.9177,4112.9,4112.6,1.39676965]
[1760294195153,0.9177,4112.9,4112.7,0.9576]
[1760294195455,0.9177,4112.7,4112.6,0.00180965]
[1760294195862,4.5006,4113.0,4112.6,0.00180965]
[1760294196164,0.01,4113.1,4113.0,2.97283]
[1760294196368,1.5283,4113.1,4113.0,2.1765]
[1760294196565,1.5283,4113.1,4112.6,0.00180965]
[1760294196566,0.6006,4112.7,4112.6,1.03977965]
[1760294196758,1.5183,4112.7,4112.6,1.65807965]
[1760294196954,1.5183,4112.7,4112.6,2.61567965]
[1760294197460,1.35506,4112.7,4112.6,0.00180965]
[1760294198268,0.9177,4112.7,4112.6,0.00180965]
[1760294198461,0.3751,4113.0,4112.8,0.9576]
[1760294198462,0.9177,4112.9,4112.8,0.9576]
[1760294198764,1.35506,4112.8,4112.6,0.95940965]
[1760294199067,0.3751,4113.0,4112.6,0.00180965]
[1760294199068,0.9177,4112.7,4112.6,0.00180965]
[1760294199460,0.9177,4112.7,4112.6,0.43917965]
[1760294199660,0.9177,4112.7,4112.6,1.39677965]
[1760294199861,0.43735,4112.8,4112.7,0.9576]
[1760294200265,0.43735,4112.8,4112.6,0.43917965]
[1760294200266,0.43736,4112.7,4112.6,0.00180965]
[1760294200467,1.35506,4112.7,4112.6,0.00180965]
[1760294200763,0.9177,4112.7,4112.6,0.43917965]
[1760294200968,1.2928,4113.0,4112.6,0.00180965]
[1760294201166,1.35503,4113.0,4112.9,1.2189]
[1760294201463,1.35503,4113.0,4112.9,2.1765]
[1760294201663,1.95563,4113.0,4112.9,2.1765]
[1760294201862,1.95563,4113.0,4112.6,0.60240965]
[1760294201863,2.1389,4112.7,4112.6,0.60240965]
[1760294202064,2.1389,4112.7,4112.6,0.00180965]
[1760294202065,2.57626,4112.7,4112.6,0.00180965]
[1760294202262,0.3751,4112.5,4112.0,3.2078]
[1760294202460,0.43743,4112.0,4111.4,0.43749]
[1760294202666,0.43744,4111.9,4111.5,0.43748]
[1760294202856,0.9177,4111.8,4111.6,0.9576]
[1760294203056,0.9177,4111.8,4111.7,0.9576]
[1760294203367,0.9177,4111.8,4111.7,0.95971795]
[1760294204166,0.43744,4111.9,4111.7,0.95971795]
[1760294204356,1.35554,4111.9,4111.7,1.33367795]
[1760294204556,0.9181,4111.9,4111.7,0.43957795]
[1760294204762,4.1259,4112.1,4112.0,0.8941]
[1760294204959,0.9181,4112.0,4111.7,0.43957795]
[1760294205174,3.2078,4112.1,4111.8,1.33155]
[1760294205175,3.64522,4112.1,4111.8,1.33155]
[1760294205468,3.64522,4112.1,4111.7,0.00211795]
[1760294205469,0.43745,4111.8,4111.7,0.00211795]
[1760294205671,1.35555,4111.8,4111.7,0.00211795]
[1760294206067,2.06393983,4111.8,4111.7,0.00211795]
[1760294206674,4.63449327,4111.8,4111.7,0.00211795]
[1760294207064,7.86048509,4111.8,4111.7,0.00211795]
[1760294207268,0.3554,4111.5,4109.8,3.2078]
[1760294207472,0.9181,4109.9,4109.8,3.2078]
[1760294208074,0.43766,4109.9,4109.2,3.2078]
[1760294208268,1.35577,4109.8,4109.2,4.10369361]
[1760294208577,1.35577,4109.8,4109.2,4.54142361]
[1760294208770,0.43767,4109.8,4109.4,0.8941]
[1760294208965,0.9181,4109.7,4109.4,0.8941]
[1760294209272,0.43771,4109.4,4109.2,4.10369361]
[1760294209474,0.9181,4109.3,4109.2,3.20959361]
[1760294211773,0.9181,4109.3,4109.2,0.00179361]
[1760294213882,0.9181,4109.6,4109.3,0.8941]
[1760294214274,0.00214322,4109.9,4109.6,0.43768]
[1760294214478,0.43980322,4109.9,4109.2,0.00179361]
[1760294214682,0.9181,4109.8,4109.3,0.8941]
[1760294214873,1.35790322,4109.9,4109.3,0.8941]
[1760294215075,0.43771,4109.4,4109.2,0.00179361]
[1760294215277,4.1259,4109.3,4109.2,0.00179361]
[1760294215680,0.9181,4109.3,4109.2,0.00179361]
[1760294216578,4.1259,4109.3,4109.2,0.00179361]
[1760294216884,6.66700183,4109.3,4109.2,0.00179361]
[1760294217275,1.35596,4108.0,4107.5,1.2565]
[1760294217475,0.43784,4108.2,4107.5,0.80031]
[1760294217676,0.43784,4108.2,4107.6,0.4379]
[1760294217881,0.43785,4108.1,4108.0,0.8941]
[1760294218092,1.35595,4108.1,4108.0,0.8941]
[1760294218288,1.35595,4108.1,4108.0,0.89582018]
[1760294218582,0.9181,4108.4,4108.0,0.35172018]
[1760294218789,0.43784,4108.2,4108.1,0.8941]
[1760294219084,1.09441,4108.9,4108.5,0.3624]
[1760294219085,1.35586,4108.9,4108.5,0.3624]
[1760294219286,0.43776,4108.9,4108.5,0.3624]
[1760294219481,0.43776,4108.9,4108.6,0.8941]
[1760294219679,3.2078,4109.2,4108.5,0.3624]
[1760294219680,0.43777,4108.8,4108.5,0.3624]
[1760294219876,0.43777,4108.9,4108.5,0.3624]
[1760294220084,0.9181,4109.2,4109.0,0.8941]
[1760294220384,0.43774,4109.1,4108.6,0.43779]
[1760294220579,0.43774,4109.1,4108.4,3.2078]
[1760294220580,0.43778,4108.8,4108.4,4.1019]
[1760294220788,0.9181,4108.6,4108.4,4.1019]
[1760294220981,1.3559,4108.6,4108.4,4.1019]
[1760294221179,1.3559,4108.6,4108.5,0.8941]
[1760294221586,0.9181,4108.6,4108.5,0.8941]
[1760294221888,0.3554,4109.0,4108.5,0.8941]
[1760294221889,4.1259,4109.2,4108.8,0.8941]
[1760294222082,0.9181,4109.2,4109.0,0.43774]
[1760294222379,3.2078,4110.2,4109.1,3.64553]
[1760294222583,0.91184322,4109.9,4109.2,0.9212]
[1760294222783,0.43768,4109.7,4109.3,0.9212]
[1760294223085,0.43768,4109.7,4108.6,0.9212]
[1760294223086,0.3724,4109.5,4108.6,0.9212]
[1760294223284,0.9097,4108.7,4108.3,0.43782]
[1760294223484,0.9097,4108.7,4108.5,1.359]
[1760294223688,0.9097,4108.7,4108.6,0.9212]
[1760294223990,0.9097,4108.2,4108.1,3.2078]
[1760294224688,0.9097,4108.2,4108.1,4.129]
[1760294224890,0.9097,4109.0,4108.4,0.9212]
[1760294225185,0.9097,4108.8,4108.4,0.43781]
[1760294225594,1.34747,4108.8,4108.5,0.9212]
[1760294225786,0.9097,4108.6,4108.1,3.2078]
[1760294225985,0.43781,4108.5,4108.1,3.2078]
[1760294226184,0.43782,4108.4,4108.2,0.9212]
[1760294226488,0.9097,4108.3,4108.2,0.9212]
[1760294227091,0.9097,4108.5,4108.1,0.43784]
[1760294227289,0.9097,4108.5,4108.2,0.9212]
[1760294227583,2.19044322,4109.9,4108.3,0.9212]
[1760294227584,0.9097,4108.9,4108.3,0.9212]
[1760294227889,0.9097,4108.6,4108.1,0.43784]
[1760294228095,0.43782,4108.4,4108.1,0.9212]
[1760294228292,4.1175,4108.6,4108.0,0.35172018]
[1760294228586,0.9097,4108.6,4108.0,0.43957018]
[1760294228786,4.1175,4108.6,4108.5,0.9212]
[1760294228987,0.9097,4108.6,4108.5,0.9212]
[1760294229381,1.34754,4108.2,4108.0,0.00172018]
[1760294229586,4.1175,4108.1,4108.0,0.00172018]
[1760294230293,0.9097,4108.1,4108.0,0.00172018]
[1760294230493,4.1175,4108.1,4108.0,0.00172018]
[1760294231688,5.22327073,4109.0,4108.2,0.43784]
[1760294231689,3.2078,4108.6,4108.2,0.43784]
[1760294231987,0.9097,4108.5,4108.1,0.9212]
[1760294232290,0.43782,4108.4,4108.1,0.43785]
[1760294232495,0.43782,4108.4,4108.1,0.43784]
[1760294232684,0.43781,4108.5,4108.2,0.43783]
[1760294232889,0.43782,4108.4,4108.3,0.9212]
[1760294233285,3.2078,4108.6,4108.5,0.4378]
[1760294233491,3.2078,4109.3,4108.5,4.4821]
[1760294233692,3.2078,4109.3,4109.1,0.9212]
[1760294233998,0.43765,4110.0,4109.6,0.9212]
[1760294234187,3.2078,4110.4,4109.5,0.3553]
[1760294234188,0.43767,4109.8,4109.5,0.3553]
[1760294234496,0.43980322,4109.9,4109.6,0.9212]
[1760294234886,0.00214322,4109.9,4109.7,0.9212]
[1760294235086,3.2078,4110.9,4110.4,0.9212]
[1760294235389,1.34726,4110.8,4110.1,0.9212]
[1760294235589,3.2078,4110.9,4110.6,0.9212]
[1760294235791,3.2078,4110.9,4110.5,0.79069]
[1760294235995,0.00295417,4110.9,4110.7,3.2078]
[1760294236196,0.00295417,4110.9,4110.8,0.9212]
[1760294236996,0.9097,4111.8,4110.8,0.9212]
[1760294237198,0.9097,4111.8,4111.1,0.43752]
[1760294237491,0.9097,4111.8,4111.3,0.9212]
[1760294237691,0.43746,4111.8,4111.3,0.9212]
[1760294238002,0.43762,4110.3,4109.8,0.9212]
[1760294238191,0.43763,4110.2,4109.8,0.92357081]
[1760294238496,0.43763,4110.2,4109.8,0.00237081]
[1760294238497,0.9097,4109.9,4109.8,0.00237081]
[1760294238893,3.64545,4110.0,4109.9,0.9212]
[1760294239095,0.43765,4110.0,4109.8,0.00237081]
[1760294239296,0.9097,4109.9,4109.8,0.00237081]
[1760294239597,5.76057073,4109.9,4109.8,0.00237081]
[1760294239997,0.9097,4109.9,4109.8,0.00237081]
[1760294240197,1.53184,4109.8,4108.9,0.9212]
[1760294240394,0.43778,4108.8,4108.6,3.2078]
[1760294240597,0.9097,4108.7,4108.6,3.2078]
[1760294240795,0.9097,4108.7,4106.5,3.39969726]
[1760294240796,1.09463,4108.1,4106.5,1.2765]
[1760294240994,3.2078,4106.8,4106.6,0.9212]
[1760294241205,3.2078,4107.5,4107.0,0.3553]
[1760294241399,3.21019027,4107.5,4107.1,0.9212]
[1760294241996,0.00239027,4107.5,4107.3,0.43792]
[1760294242195,0.00239027,4107.5,4107.4,0.9212]
[1760294243098,3.21019027,4107.5,4107.4,0.9212]
[1760294244800,3.64810027,4107.5,4107.4,0.9212]
[1760294245002,3.64810027,4107.5,4107.0,1.2765]
[1760294245003,0.43795,4107.1,4107.0,1.2765]
[1760294245402,3.04113244,4107.1,4107.0,1.2765]
[1760294245598,3.04113244,4107.1,4105.2,0.68174052]
[1760294245599,0.43809,4105.8,4105.7,0.9212]
[1760294245802,0.43809,4105.8,4105.2,0.24359052]
[1760294245803,3.2078,4105.8,4105.6,0.9212]
[1760294246001,3.2078,4105.8,4105.7,0.9212]
[1760294246297,3.2078,4105.8,4105.2,0.24359052]
[1760294246298,0.43815,4105.3,4105.2,0.24359052]
[1760294246501,3.2078,4105.3,4104.5,0.35653308]
[1760294246697,3.2078,4104.6,4104.5,1.28048948]
[1760294246901,0.0022727,4104.6,4104.5,3.84358948]
[1760294247097,3.2078,4105.7,4105.0,0.3553]
[1760294247696,3.2078,4105.7,4105.0,0.79347]
[1760294247903,3.2078,4105.7,4105.2,0.43815]
[1760294248095,3.21016552,4105.7,4105.2,0.43815]
[1760294248302,3.21016552,4105.7,4105.0,0.79347]
[1760294248603,3.21016552,4105.7,4105.5,0.73662]
[1760294248802,3.21016552,4105.7,4105.6,0.9212]
[1760294249205,3.21016552,4105.7,4105.0,1.2765]
[1760294249403,3.21016552,4105.7,4105.1,0.9212]
[1760294249404,0.43812,4105.6,4105.1,0.9212]
[1760294249603,0.43812,4105.6,4105.0,0.3553]
[1760294249801,3.21016552,4105.7,4105.6,0.9212]
[1760294250404,0.43813,4105.5,4104.6,1.35941]
[1760294250606,3.21016552,4105.7,4104.7,0.9212]
[1760294250804,0.43815,4105.3,4104.7,0.9212]
[1760294251004,0.43816,4105.2,4104.7,0.9212]
[1760294251299,0.43816,4105.2,4104.5,4.0040764]
[1760294251300,0.43816,4105.2,4104.6,0.9212]
[1760294251504,0.43816,4105.2,4104.5,4.0040764]
[1760294251505,3.2078,4105.2,4104.5,3.5658564]
[1760294251709,1.34789,4105.0,4104.6,0.9212]
[1760294251906,1.34789,4105.0,4104.5,0.0027564]
[1760294251907,0.43821,4104.7,4104.5,0.0027564]
[1760294252109,1.34791,4104.7,4104.5,0.0027564]
[1760294252312,0.9097,4104.6,4104.5,0.0027564]
[1760294254211,0.43821,4104.7,4104.5,0.0027564]
[1760294254714,0.8752,4105.1,4104.5,1.3952864]
[1760294254912,0.4382,4104.8,4104.6,0.9543]
[1760294255510,0.4382,4104.8,4104.5,0.9570564]
[1760294255704,0.43819,4104.9,4104.6,0.9543]
[1760294255909,0.43822,4104.7,4104.5,0.0027564]
[1760294256118,0.43822,4104.7,4104.5,0.9570564]
[1760294256713,0.8752,4104.6,4104.5,0.0027564]
[1760294257411,4.083,4104.6,4104.5,0.0027564]
[1760294258218,3.2078,4105.1,4104.5,0.9570564]
[1760294258418,0.4382,4104.8,4104.5,0.9570564]
[1760294258618,0.43818,4105.0,4104.6,0.9543]
[1760294258813,0.43818,4105.0,4104.5,0.0027564]
[1760294259017,3.2078,4105.1,4105.0,1.2528]
[1760294259222,3.2078,4105.6,4105.3,0.43815]
[1760294259518,3.2078,4105.6,4105.4,0.9543]
[1760294259715,3.2078,4105.6,4105.5,1.3096]
[1760294259918,0.00236552,4105.7,4105.5,1.74772]
[1760294260218,0.00236552,4105.7,4105.6,0.9543]
[1760294260416,3.2078,4106.7,4105.6,4.30307]
[1760294260612,3.2078,4106.7,4106.5,0.43801]
[1760294260818,3.2078,4106.7,4106.6,0.9543]
[1760294261220,3.64575,4107.2,4106.6,1.3923]
[1760294261416,3.21095356,4107.2,4106.3,0.9543]
[1760294261616,3.21095356,4107.2,4106.7,0.9543]
[1760294261818,3.21095356,4107.2,4106.7,0.43799]
[1760294262220,0.00315356,4107.2,4107.1,0.9543]
[1760294264023,3.2078,4107.8,4107.1,0.9543]
[1760294264322,1.31303,4108.3,4107.3,0.9543]
[1760294264619,0.8752,4108.3,4107.6,1.39219]
[1760294265018,0.43786,4108.0,4107.6,0.95723423]
[1760294265220,0.43786,4108.0,4107.6,0.00293423]
[1760294265422,0.43786,4108.0,4107.7,0.9543]
[1760294265620,0.8902,4107.7,4107.6,0.00293423]
[1760294268416,3.64566,4108.0,4107.6,0.00293423]
[1760294268614,3.2078,4108.0,4107.6,0.00293423]
[1760294268821,3.2078,4108.0,4107.9,0.9543]
[1760294269321,0.43787,4107.9,4107.7,0.9543]
[1760294269628,3.64566,4108.0,4107.7,0.9543]
[1760294270030,0.43785,4108.1,4107.7,0.43789]
[1760294270428,0.43785,4108.1,4107.6,0.00293423]
[1760294270429,3.64566,4108.0,4107.6,0.00293423]
[1760294270726,3.64566,4108.0,4107.7,0.9543]
[1760294270920,4.53586,4108.0,4107.7,0.9543]
[1760294271120,3.64566,4108.0,4107.6,0.44083423]
[1760294271326,0.43784,4108.2,4107.8,0.9543]
[1760294271523,0.43785,4108.1,4107.7,0.43788]
[1760294271729,0.43785,4108.1,4107.8,0.43788]
[1760294271929,0.43788,4107.8,4107.6,0.00293423]
[1760294272125,0.43787,4108.0,4107.6,0.44083423]
[1760294272330,0.8902,4107.8,4107.6,0.00293423]
[1760294272527,0.43787,4107.9,4107.7,0.9543]
[1760294272729,1.32807,4107.9,4107.7,0.9543]
[1760294273436,1.32809,4107.7,4107.6,0.00293423]
[1760294273727,1.32809,4107.7,4107.6,0.95723423]
[1760294273728,0.43789,4107.7,4107.6,0.95723423]
[1760294273934,0.43787,4107.9,4107.7,0.9543]
[1760294274233,0.43786,4108.0,4107.7,0.9543]
[1760294274438,0.43786,4108.0,4107.7,0.43789]
[1760294274731,0.43787,4107.9,4107.7,0.9543]
[1760294274925,0.00259029,4108.3,4108.1,0.9543]
[1760294275128,0.00259029,4108.3,4108.1,1.39215]
[1760294275428,3.2078,4108.5,4108.3,0.43783]
[1760294275628,3.2078,4109.2,4108.9,0.4161]
[1760294275834,3.64553,4109.2,4108.9,0.4161]
[1760294276127,0.43774,4109.1,4108.6,0.43779]
[1760294276327,0.43774,4109.1,4108.4,3.2078]
[1760294276328,0.43774,4109.1,4108.7,0.43778]
[1760294276524,0.44008662,4109.1,4108.5,0.4161]
[1760294276725,0.43778,4108.8,4108.5,0.4161]
[1760294276929,0.43779,4108.7,4108.5,0.4161]
[1760294277130,1.2684,4108.5,4108.4,3.2078]
[1760294277533,1.328,4108.6,4108.4,3.2078]
[1760294277723,0.4378,4108.6,4108.4,3.2078]
[1760294277931,0.8902,4108.5,4108.4,3.2078]
[1760294278842,1.47261,4109.0,4108.5,0.4161]
[1760294278843,0.43775,4109.0,4108.5,0.4161]
[1760294279045,0.43775,4109.0,4108.7,0.4161]
[1760294279342,0.00234662,4109.1,4109.0,0.4161]
[1760294279543,0.44008662,4109.1,4108.9,3.2078]
[1760294279845,0.44008662,4109.1,4109.0,0.4161]
[1760294280045,0.44008662,4109.1,4108.9,3.2078]
[1760294280232,0.43777,4108.8,4108.2,3.2078]
[1760294280437,0.43777,4108.8,4108.5,0.4378]
[1760294280736,0.8902,4108.7,4108.4,0.43781]
[1760294280936,0.43782,4108.4,4108.2,3.2078]
[1760294281141,0.8902,4108.5,4108.2,3.2078]
[1760294281640,0.8902,4108.5,4108.3,0.85392]
[1760294282242,0.8902,4108.5,4108.3,0.43782]
[1760294282748,0.9192,4109.0,4108.7,0.84488]
[1760294283040,1.35695,4109.0,4108.7,0.4071]
[1760294283247,1.35695,4109.0,4108.6,0.43779]
[1760294283447,1.35695,4109.0,4108.7,3.6149]
[1760294283644,0.43776,4108.9,4108.7,3.6149]
[1760294284252,0.43776,4108.9,4108.7,3.2078]
[1760294284546,0.9192,4108.8,4108.7,3.2078]
[1760294284746,0.9192,4108.8,4107.7,1.09472]
[1760294284747,1.35708,4107.8,4107.7,3.2078]
[1760294284942,1.35708,4107.8,4107.7,2.71094425]
[1760294285148,4.00295562,4107.8,4107.2,3.2078]
[1760294285344,0.9192,4107.4,4106.1,3.64586]
[1760294285643,0.9192,4106.6,4106.2,0.43805]
[1760294285846,0.9192,4106.9,4106.1,3.6149]
[1760294286142,3.2078,4107.7,4106.8,3.2078]
[1760294286343,1.35717,4106.9,4106.8,0.00295044]
[1760294287547,0.9192,4105.8,4105.7,3.2078]
[1760294288045,1.3573,4105.8,4105.2,3.2078]
[1760294288242,0.9192,4105.8,4105.2,3.2078]
[1760294288445,1.35735,4105.3,4105.2,0.00192997]
[1760294288650,1.35735,4105.3,4104.2,3.2078]
[1760294288651,3.2078,4105.3,4104.2,3.2078]
[1760294288849,0.3752,4104.5,4103.8,0.04239121]
[1760294289049,0.9192,4103.8,4103.7,3.2078]
[1760294289246,0.9192,4103.9,4102.3,0.8729]
[1760294289546,0.3752,4104.5,4103.7,0.43832]
[1760294289547,2.82504281,4103.8,4103.7,0.43832]
[1760294289747,3.2078,4105.4,4103.8,0.8729]
[1760294289948,3.2078,4105.4,4104.4,0.8729]
[1760294290549,3.2078,4105.4,4104.6,0.43821]
[1760294290849,0.9192,4105.3,4104.4,1.31114]
[1760294291045,3.2078,4104.9,4104.4,0.8729]
[1760294291443,0.43822,4104.6,4103.9,0.8729]
[1760294291650,3.2078,4104.4,4103.8,0.8729]
[1760294291843,3.2078,4104.4,4103.8,1.3112]
[1760294292044,3.2078,4104.4,4103.8,0.8729]
[1760294292551,3.2078,4104.4,4103.9,0.43829]
[1760294292750,3.2078,4104.4,4104.1,0.43827]
[1760294292947,3.2078,4105.4,4105.2,0.43816]
[1760294293249,5.96162992,4105.4,4104.5,1.31113]
[1760294293545,3.2078,4104.9,4104.5,0.8729]
[1760294293738,3.2078,4104.9,4103.5,0.3707]
[1760294293739,0.43822,4104.6,4104.1,0.8729]
[1760294293943,3.2078,4104.3,4103.6,0.8729]
[1760294294245,0.9192,4104.2,4103.6,0.8729]
[1760294294439,3.2078,4104.3,4103.6,0.8729]
[1760294294640,4.127,4103.8,4102.8,0.8729]
[1760294295142,4.127,4103.8,4102.6,0.04240554]
[1760294295347,4.127,4103.8,4101.7,0.8729]
[1760294295348,0.43844,4102.6,4101.7,0.8729]
[1760294295545,3.2078,4102.2,4101.9,0.04241288]
[1760294295743,3.2078,4102.2,4098.9,3.04439726]
[1760294295744,0.3752,4101.5,4098.9,3.04439726]
[1760294295941,0.9192,4101.9,4099.1,0.8729]
[1760294295942,0.3308,4099.3,4099.1,0.8729]
[1760294296147,3.2078,4100.5,4099.9,0.3707]
[1760294296351,3.2078,4100.9,4100.0,4.08176962]
[1760294296649,1.19063032,4101.8,4099.9,0.3707]
[1760294296650,3.2078,4101.5,4100.7,0.8729]
[1760294296843,3.2078,4101.0,4100.2,0.00099824]
[1760294297147,2.5997169,4101.6,4101.0,0.87373173]
[1760294297346,3.2078,4101.7,4101.0,0.8729]
[1760294297549,0.43848,4102.2,4100.6,0.3707]
[1760294297550,3.2078,4101.1,4100.6,0.3707]
[1760294297751,3.2078,4101.1,4100.3,0.8729]
[1760294297941,0.0937252,4102.1,4101.1,0.8729]
[1760294298145,3.2078,4101.8,4101.1,0.8729]
[1760294298350,0.9192,4102.4,4100.6,0.3707]
[1760294298351,3.2078,4101.3,4100.6,0.3707]
[1760294298552,3.2078,4101.9,4101.1,3.2078]
[1760294298748,3.2078,4101.9,4101.2,0.8729]
[1760294299050,3.2078,4101.3,4100.6,0.3707]
[1760294299251,3.2078,4101.7,4100.8,0.8729]
[1760294299650,10.95399,4105.3,4100.6,0.3707]
[1760294299651,3.2078,4103.3,4101.7,0.8729]
[1760294299844,3.2078,4102.8,4102.3,0.8729]
[1760294300049,4.127,4102.8,4101.7,3.2078]
[1760294300349,3.2078,4102.3,4101.7,3.2078]
[1760294300541,0.05725105,4102.7,4101.7,3.2078]
[1760294300740,3.2078,4102.3,4101.7,3.2078]
[1760294301048,0.9192,4102.8,4100.6,0.0008793]
[1760294301049,0.43856,4101.4,4100.6,0.0008793]
[1760294301246,0.43856,4101.4,4100.2,0.8729]
[1760294301247,3.2078,4101.0,4100.2,0.8729]
[1760294301548,2.42476369,4101.3,4100.2,1.31159]
[1760294301748,3.64641,4101.0,4100.6,0.8729]
[1760294302051,3.2078,4101.0,4100.1,0.43869]
[1760294302357,0.43863,4100.8,4100.1,0.87382687]
[1760294302648,3.2078,4101.0,4099.1,10.222]
[1760294302649,0.43874,4099.8,4099.1,0.00128383]
[1760294302849,3.2078,4099.9,4099.1,0.00128383]
[1760294303044,3.2078,4099.9,4099.2,1.2436]
[1760294303254,2.57387538,4100.3,4099.8,0.00099824]
[1760294303451,3.2078,4100.7,4100.2,0.87373173]
[1760294303646,0.9192,4100.6,4099.8,0.00083173]
[1760294303855,3.2078,4100.7,4100.2,0.00095066]
[1760294304046,3.2078,4100.7,4100.1,0.43869]
[1760294304245,3.2078,4100.2,4098.9,0.8729]
[1760294304457,3.2078,4100.2,4099.3,0.8729]
[1760294304752,0.43872,4100.0,4099.3,0.8729]
[1760294304952,2.55779999,4100.1,4099.3,0.8729]
[1760294305152,3.2078,4099.7,4099.3,0.8729]
[1760294305547,3.2078,4099.7,4099.2,0.3707]
[1760294305743,3.2612738,4099.6,4099.1,0.00201462]
[1760294305943,3.2078,4099.2,4099.1,0.00201462]
[1760294306153,3.2078,4099.2,4099.1,0.87491462]
[1760294306343,0.00313491,4099.9,4099.3,0.8729]
[1760294306344,2.61432625,4099.8,4099.3,0.8729]
[1760294306548,3.2078,4099.7,4099.3,0.8729]
[1760294306748,3.64655,4099.7,4099.3,0.8729]
[1760294307050,2.61432625,4099.6,4099.3,0.8729]
[1760294307253,3.2078,4099.7,4099.3,0.8729]
[1760294307548,0.00313491,4099.9,4099.8,0.8729]
[1760294307754,3.21093491,4099.9,4099.8,0.8729]
[1760294308152,0.43873,4099.8,4099.6,0.8729]
[1760294308753,3.21093491,4099.9,4099.3,0.8729]
[1760294309050,3.2078,4100.9,4100.2,0.43869]
[1760294309253,3.2078,4100.9,4100.6,0.8729]
[1760294309449,3.2078,4100.9,4100.0,0.80941]
[1760294309643,3.2078,4100.9,4100.1,0.8729]
[1760294309850,3.2078,4100.9,4100.1,1.31159]
[1760294310053,3.2078,4100.9,4100.1,0.8729]
[1760294310251,1.09635,4101.7,4099.5,1.2436]